[Event "Early-Titled-Tuesday-Blitz-March-26-2024"]
[Site "Chess.com"]
[Date "2024.03.26"]
[Round "4"]
[White "Matibar"]
[Black "moro182"]
[Result "0-1"]
[WhiteElo "2735"]
[BlackElo "2895"]
[TimeControl "180+1"]
[EndTime "8:38:06 PDT"]
[Termination "moro182 won on time"]

1. e4 {[%clk 0:03:00.9]} 1... g6 {[%clk 0:03:00.9]} 2. d4 {[%clk 0:03:00.4]}
2... Bg7 {[%clk 0:03:01.8]} 3. Nf3 {[%clk 0:02:59.5]} 3... d6 {[%clk 0:03:01.8]}
4. Bc4 {[%clk 0:02:58.8]} 4... Nf6 {[%clk 0:03:02]} 5. Qe2 {[%clk 0:02:58.7]}
5... O-O {[%clk 0:03:02.3]} 6. h3 {[%clk 0:02:57.6]} 6... c6 {[%clk 0:03:01]} 7.
Bb3 {[%clk 0:02:55.1]} 7... a5 {[%clk 0:03:00.1]} 8. a4 {[%clk 0:02:54.5]} 8...
b6 {[%clk 0:03:00.3]} 9. c4 {[%clk 0:02:38.2]} 9... e5 {[%clk 0:02:45.4]} 10. d5
{[%clk 0:02:22.4]} 10... Ba6 {[%clk 0:02:39.3]} 11. Nc3 {[%clk 0:02:21.4]} 11...
cxd5 {[%clk 0:02:36.3]} 12. exd5 {[%clk 0:02:20.9]} 12... e4 {[%clk 0:02:23.4]}
13. Nd2 {[%clk 0:02:15.6]} 13... e3 {[%clk 0:02:17]} 14. fxe3 {[%clk 0:02:15.5]}
14... Nh5 {[%clk 0:02:17.6]} 15. Qf2 {[%clk 0:01:55.8]} 15... Nd7 {[%clk
0:01:41.9]} 16. g4 {[%clk 0:01:54.8]} 16... Ne5 {[%clk 0:01:34.8]} 17. Bc2
{[%clk 0:01:25.5]} 17... Nf6 {[%clk 0:01:32.4]} 18. e4 {[%clk 0:01:02.3]} 18...
Nxc4 {[%clk 0:01:16.3]} 19. Nxc4 {[%clk 0:01:01.9]} 19... Bxc4 {[%clk
0:01:17.2]} 20. Be3 {[%clk 0:00:55.9]} 20... Nd7 {[%clk 0:01:14]} 21. Bd4 {[%clk
0:00:47.5]} 21... Rc8 {[%clk 0:01:07.1]} 22. O-O-O {[%clk 0:00:41.9]} 22... Bxd4
{[%clk 0:00:57.7]} 23. Qxd4 {[%clk 0:00:41.2]} 23... Ne5 {[%clk 0:00:56.6]} 24.
Kb1 {[%clk 0:00:36]} 24... Qd7 {[%clk 0:00:55.2]} 25. g5 {[%clk 0:00:33.7]}
25... b5 {[%clk 0:00:54.4]} 26. axb5 {[%clk 0:00:32.9]} 26... Bxb5 {[%clk
0:00:54.8]} 27. h4 {[%clk 0:00:28.8]} 27... a4 {[%clk 0:00:50.7]} 28. Bxa4
{[%clk 0:00:21.5]} 28... Bxa4 {[%clk 0:00:48.5]} 29. Qxa4 {[%clk 0:00:22.4]}
29... Qb7 {[%clk 0:00:46.5]} 30. Qb5 {[%clk 0:00:22.4]} 30... Qc7 {[%clk
0:00:44.5]} 31. Qe2 {[%clk 0:00:19.9]} 31... Ra8 {[%clk 0:00:40.4]} 32. h5
{[%clk 0:00:18.6]} 32... Rfb8 {[%clk 0:00:38.1]} 33. Rc1 {[%clk 0:00:13.2]}
33... Qa7 {[%clk 0:00:29]} 34. Kc2 {[%clk 0:00:13.5]} 34... Qb6 {[%clk
0:00:22.3]} 35. Kb1 {[%clk 0:00:12.2]} 35... Nc4 {[%clk 0:00:19.8]} 36. Kc2
{[%clk 0:00:01]} 36... Qb3+ {[%clk 0:00:14.9]} 0-1

[Event "Early-Titled-Tuesday-Blitz-March-26-2024"]
[Site "Chess.com"]
[Date "2024.03.26"]
[Round "4"]
[White "Bauman_Guy"]
[Black "SirStrateg"]
[Result "1-0"]
[WhiteElo "2913"]
[BlackElo "2619"]
[TimeControl "180+1"]
[EndTime "8:38:07 PDT"]
[Termination "Bauman_Guy won by resignation"]

1. e4 {[%clk 0:03:00.9]} 1... d6 {[%clk 0:02:59.8]} 2. d4 {[%clk 0:03:00.7]}
2... Nf6 {[%clk 0:03:00.4]} 3. Nc3 {[%clk 0:03:01.4]} 3... c6 {[%clk 0:03:01.1]}
4. Nf3 {[%clk 0:03:01.1]} 4... Bg4 {[%clk 0:03:01.1]} 5. h3 {[%clk 0:03:00.3]}
5... Bh5 {[%clk 0:03:01.5]} 6. g4 {[%clk 0:03:00.5]} 6... Bg6 {[%clk 0:03:01.7]}
7. Qe2 {[%clk 0:03:00.9]} 7... e6 {[%clk 0:03:02.3]} 8. h4 {[%clk 0:03:01]} 8...
h6 {[%clk 0:03:00.7]} 9. Bh3 {[%clk 0:02:58.5]} 9... d5 {[%clk 0:02:54.8]} 10.
e5 {[%clk 0:02:57.9]} 10... Ne4 {[%clk 0:02:51.9]} 11. h5 {[%clk 0:02:56.4]}
11... Nxc3 {[%clk 0:02:51.7]} 12. bxc3 {[%clk 0:02:56.8]} 12... Be4 {[%clk
0:02:51.4]} 13. O-O {[%clk 0:02:56.6]} 13... Nd7 {[%clk 0:02:40.6]} 14. Bf4
{[%clk 0:02:53]} 14... Qa5 {[%clk 0:02:37.3]} 15. Qe3 {[%clk 0:02:23.4]} 15...
Nb6 {[%clk 0:02:33.6]} 16. Nd2 {[%clk 0:02:22.6]} 16... Bxc2 {[%clk 0:02:31.5]}
17. Bg3 {[%clk 0:02:18.5]} 17... Qa6 {[%clk 0:02:24.8]} 18. f4 {[%clk
0:01:54.8]} 18... Qd3 {[%clk 0:02:25]} 19. Qxd3 {[%clk 0:01:55.4]} 19... Bxd3
{[%clk 0:02:25.3]} 20. Rf3 {[%clk 0:01:56.3]} 20... Bb5 {[%clk 0:01:57]} 21. f5
{[%clk 0:01:55.9]} 21... exf5 {[%clk 0:01:57.5]} 22. gxf5 {[%clk 0:01:55.8]}
22... Be2 {[%clk 0:01:56.6]} 23. Rf2 {[%clk 0:01:47.8]} 23... Bxh5 {[%clk
0:01:56.5]} 24. e6 {[%clk 0:01:37.2]} 24... Be7 {[%clk 0:01:48.6]} 25. Re1
{[%clk 0:01:34.3]} 25... fxe6 {[%clk 0:01:44.5]} 26. Rxe6 {[%clk 0:01:31.9]}
26... Kf7 {[%clk 0:01:22.5]} 27. f6 {[%clk 0:01:10.8]} 27... Bxf6 {[%clk
0:01:20.4]} 28. Be5 {[%clk 0:01:08.2]} 28... Raf8 {[%clk 0:00:59]} 29. Nb3
{[%clk 0:00:46.6]} 29... Nd7 {[%clk 0:00:51.5]} 30. Rd6 {[%clk 0:00:45.1]} 30...
Nxe5 {[%clk 0:00:51.7]} 31. dxe5 {[%clk 0:00:45.1]} 31... Ke7 {[%clk 0:00:50.5]}
32. Re6+ {[%clk 0:00:44.7]} 32... Kd8 {[%clk 0:00:48.2]} 33. exf6 {[%clk
0:00:45.6]} 33... Rxf6 {[%clk 0:00:45.8]} 34. Rfxf6 {[%clk 0:00:45]} 34... gxf6
{[%clk 0:00:46]} 35. Rxf6 {[%clk 0:00:45.6]} 35... Be8 {[%clk 0:00:43.3]} 36.
Nc5 {[%clk 0:00:39.2]} 36... b6 {[%clk 0:00:41.4]} 37. Ne6+ {[%clk 0:00:39.1]}
37... Ke7 {[%clk 0:00:41.1]} 38. Rf3 {[%clk 0:00:33.6]} 38... Rg8+ {[%clk
0:00:38.7]} 39. Kh2 {[%clk 0:00:31.2]} 39... Rg6 {[%clk 0:00:30.3]} 40. Re3
{[%clk 0:00:28.5]} 40... Kf7 {[%clk 0:00:18.7]} 41. Nc7 {[%clk 0:00:23.1]} 41...
Rg8 {[%clk 0:00:07]} 42. Be6+ {[%clk 0:00:22.7]} 1-0

[Event "Early-Titled-Tuesday-Blitz-March-26-2024"]
[Site "Chess.com"]
[Date "2024.03.26"]
[Round "4"]
[White "MVM2008"]
[Black "RianKapriaga"]
[Result "0-1"]
[WhiteElo "2473"]
[BlackElo "2340"]
[TimeControl "180+1"]
[EndTime "8:38:11 PDT"]
[Termination "RianKapriaga won by checkmate"]

1. e4 {[%clk 0:03:00.9]} 1... c6 {[%clk 0:02:59.2]} 2. d4 {[%clk 0:02:59.9]}
2... d5 {[%clk 0:02:59.4]} 3. Bf4 {[%clk 0:02:53]} 3... dxe4 {[%clk 0:02:53.7]}
4. Nc3 {[%clk 0:02:53.1]} 4... Nf6 {[%clk 0:02:48.8]} 5. f3 {[%clk 0:02:52.5]}
5... exf3 {[%clk 0:02:45.6]} 6. Nxf3 {[%clk 0:02:53.4]} 6... Bg4 {[%clk
0:02:41.6]} 7. Bd3 {[%clk 0:02:47.5]} 7... e6 {[%clk 0:02:39.5]} 8. h3 {[%clk
0:02:45.6]} 8... Bh5 {[%clk 0:02:32.5]} 9. g4 {[%clk 0:02:42.9]} 9... Bg6 {[%clk
0:02:31.8]} 10. Ne5 {[%clk 0:02:43.4]} 10... Bb4 {[%clk 0:01:50.9]} 11. a3
{[%clk 0:02:22.6]} 11... Ba5 {[%clk 0:01:48]} 12. h4 {[%clk 0:02:15.5]} 12...
Qxd4 {[%clk 0:01:41.2]} 13. Nxg6 {[%clk 0:01:25.2]} 13... hxg6 {[%clk
0:01:36.1]} 14. Qd2 {[%clk 0:01:23.1]} 14... Nbd7 {[%clk 0:01:16.3]} 15. b4
{[%clk 0:01:05.2]} 15... Bb6 {[%clk 0:01:06.1]} 16. a4 {[%clk 0:00:49]} 16...
Ne5 {[%clk 0:00:59.3]} 17. Rh3 {[%clk 0:00:26.5]} 17... Qg1+ {[%clk 0:00:30.3]}
18. Bf1 {[%clk 0:00:25.1]} 18... Rd8 {[%clk 0:00:22.9]} 19. Qe2 {[%clk
0:00:16.5]} 19... Nexg4 {[%clk 0:00:20.4]} 20. Bg3 {[%clk 0:00:04.6]} 20... Rh5
{[%clk 0:00:14]} 21. a5 {[%clk 0:00:04.2]} 21... Bd4 {[%clk 0:00:12.7]} 22. Ra3
{[%clk 0:00:02.6]} 22... Ne3 {[%clk 0:00:05.7]} 23. Ne4 {[%clk 0:00:02.5]} 23...
Nxf1 {[%clk 0:00:02.9]} 24. Rd3 {[%clk 0:00:03.4]} 24... Nxg3+ {[%clk
0:00:01.6]} 25. Kd2 {[%clk 0:00:04.3]} 25... Nxe2 {[%clk 0:00:01]} 26. Kxe2
{[%clk 0:00:05.2]} 26... Nxe4 {[%clk 0:00:01.5]} 27. Rxd4 {[%clk 0:00:05.2]}
27... Qf2+ {[%clk 0:00:02.4]} 28. Kd1 {[%clk 0:00:05.4]} 28... Qxd4+ {[%clk
0:00:02.9]} 29. Kc1 {[%clk 0:00:06.3]} 29... Qd1+ {[%clk 0:00:02.9]} 30. Kb2
{[%clk 0:00:06.4]} 30... Qd2 {[%clk 0:00:03.8]} 31. Rh2 {[%clk 0:00:05.7]} 31...
Qxb4+ {[%clk 0:00:04.7]} 32. Kc1 {[%clk 0:00:05.6]} 32... Rxa5 {[%clk 0:00:05]}
33. c3 {[%clk 0:00:05.8]} 33... Ra1+ {[%clk 0:00:05.9]} 34. Kc2 {[%clk
0:00:06.3]} 34... Qb1# {[%clk 0:00:06.4]} 0-1

[Event "Early-Titled-Tuesday-Blitz-March-26-2024"]
[Site "Chess.com"]
[Date "2024.03.26"]
[Round "4"]
[White "stratacticos"]
[Black "gpsji27"]
[Result "0-1"]
[WhiteElo "1864"]
[BlackElo "2356"]
[TimeControl "180+1"]
[EndTime "8:38:11 PDT"]
[Termination "gpsji27 won by resignation"]

1. b4 {[%clk 0:03:00]} 1... e5 {[%clk 0:02:57.9]} 2. Bb2 {[%clk 0:02:59.1]} 2...
d6 {[%clk 0:02:51.1]} 3. c4 {[%clk 0:02:57.7]} 3... f5 {[%clk 0:02:49.2]} 4. e3
{[%clk 0:02:53.7]} 4... Nf6 {[%clk 0:02:49.3]} 5. Be2 {[%clk 0:02:53.1]} 5...
Be7 {[%clk 0:02:48.5]} 6. d4 {[%clk 0:02:50.3]} 6... O-O {[%clk 0:02:47.2]} 7.
dxe5 {[%clk 0:02:47.7]} 7... dxe5 {[%clk 0:02:48.1]} 8. c5 {[%clk 0:02:38.3]}
8... Nbd7 {[%clk 0:02:41.6]} 9. Bc4+ {[%clk 0:02:35.5]} 9... Kh8 {[%clk
0:02:41.7]} 10. Ne2 {[%clk 0:02:34.1]} 10... a5 {[%clk 0:01:55.8]} 11. a3 {[%clk
0:02:31.5]} 11... axb4 {[%clk 0:01:51.4]} 12. axb4 {[%clk 0:02:31.1]} 12... Rxa1
{[%clk 0:01:52.3]} 13. Bxa1 {[%clk 0:02:30.6]} 13... b6 {[%clk 0:01:40.6]} 14.
c6 {[%clk 0:02:10.2]} 14... Bxb4+ {[%clk 0:01:35.3]} 15. Kf1 {[%clk 0:02:09]}
15... Nc5 {[%clk 0:01:33.1]} 16. Qxd8 {[%clk 0:01:40.1]} 16... Rxd8 {[%clk
0:01:28]} 17. g3 {[%clk 0:01:35.3]} 17... f4 {[%clk 0:01:00.9]} 18. Nec3 {[%clk
0:01:30.7]} 18... Bh3+ {[%clk 0:00:46.7]} 19. Ke2 {[%clk 0:01:29.9]} 19... Bg2
{[%clk 0:00:30.1]} 20. Rc1 {[%clk 0:01:23.4]} 20... f3+ {[%clk 0:00:19.5]} 21.
Ke1 {[%clk 0:01:18.1]} 21... Nfe4 {[%clk 0:00:13.3]} 22. Rd1 {[%clk 0:01:09.6]}
22... Rxd1+ {[%clk 0:00:10.8]} 23. Kxd1 {[%clk 0:01:08.4]} 23... Nxf2+ {[%clk
0:00:10.1]} 24. Kc2 {[%clk 0:00:57.3]} 24... Nfd3 {[%clk 0:00:09]} 25. Nd1
{[%clk 0:00:50.3]} 25... f2 {[%clk 0:00:06.7]} 26. Nxf2 {[%clk 0:00:49.9]} 26...
Nxf2 {[%clk 0:00:07.6]} 27. Bxe5 {[%clk 0:00:48.7]} 27... Be4+ {[%clk
0:00:08.1]} 28. Kb2 {[%clk 0:00:40.6]} 28... Nfd3+ {[%clk 0:00:08]} 29. Ka2
{[%clk 0:00:36]} 29... Nxe5 {[%clk 0:00:04.5]} 30. Be2 {[%clk 0:00:22.6]} 30...
Bxb1+ {[%clk 0:00:03.6]} 31. Kxb1 {[%clk 0:00:22]} 31... Ne4 {[%clk 0:00:04.3]}
32. Ba6 {[%clk 0:00:14.9]} 32... Bc5 {[%clk 0:00:04.6]} 33. Kc2 {[%clk
0:00:14.1]} 33... Bxe3 {[%clk 0:00:04.3]} 0-1

[Event "Early-Titled-Tuesday-Blitz-March-26-2024"]
[Site "Chess.com"]
[Date "2024.03.26"]
[Round "4"]
[White "maurovargas01"]
[Black "HanSchut"]
[Result "0-1"]
[WhiteElo "1842"]
[BlackElo "2262"]
[TimeControl "180+1"]
[EndTime "8:38:11 PDT"]
[Termination "HanSchut won on time"]

1. e4 {[%clk 0:02:59]} 1... c5 {[%clk 0:02:59.5]} 2. Nc3 {[%clk 0:02:58.8]} 2...
Nc6 {[%clk 0:02:59.3]} 3. f4 {[%clk 0:02:59.7]} 3... g6 {[%clk 0:02:59.7]} 4.
Nf3 {[%clk 0:03:00.6]} 4... Bg7 {[%clk 0:03:00.2]} 5. d3 {[%clk 0:03:01]} 5...
e6 {[%clk 0:03:00.6]} 6. g3 {[%clk 0:03:01.1]} 6... Nge7 {[%clk 0:03:00.6]} 7.
Bg2 {[%clk 0:03:00.1]} 7... O-O {[%clk 0:03:00.6]} 8. O-O {[%clk 0:03:00.4]}
8... Rb8 {[%clk 0:03:01.2]} 9. Ne2 {[%clk 0:03:00.4]} 9... d5 {[%clk 0:02:58.5]}
10. e5 {[%clk 0:03:00.1]} 10... h5 {[%clk 0:02:56.5]} 11. c3 {[%clk 0:02:59.8]}
11... d4 {[%clk 0:02:54.3]} 12. c4 {[%clk 0:02:58.6]} 12... Nf5 {[%clk
0:02:54.4]} 13. Ng5 {[%clk 0:02:53.3]} 13... Bd7 {[%clk 0:02:53]} 14. h3 {[%clk
0:02:51.6]} 14... b5 {[%clk 0:02:46.4]} 15. g4 {[%clk 0:02:49.8]} 15... hxg4
{[%clk 0:02:45.9]} 16. hxg4 {[%clk 0:02:49.6]} 16... Ne3 {[%clk 0:02:46.2]} 17.
Bxe3 {[%clk 0:02:48.9]} 17... dxe3 {[%clk 0:02:46.9]} 18. Qe1 {[%clk 0:02:45.2]}
18... Nd4 {[%clk 0:02:46.5]} 19. Nxd4 {[%clk 0:02:32.5]} 19... cxd4 {[%clk
0:02:46.4]} 20. Qh4 {[%clk 0:02:30.7]} 20... Re8 {[%clk 0:02:39.1]} 21. Qh7+
{[%clk 0:02:06.6]} 21... Kf8 {[%clk 0:02:38.7]} 22. Qh4 {[%clk 0:01:54.4]} 22...
bxc4 {[%clk 0:02:16.9]} 23. Nh7+ {[%clk 0:01:46.6]} 23... Kg8 {[%clk 0:02:16.5]}
24. g5 {[%clk 0:01:42]} 24... Rxb2 {[%clk 0:01:23.2]} 25. Nf6+ {[%clk
0:01:37.4]} 25... Kf8 {[%clk 0:01:22.9]} 26. dxc4 {[%clk 0:01:27.8]} 26... Rxg2+
{[%clk 0:00:34.2]} 27. Kxg2 {[%clk 0:01:27.3]} 27... Bc6+ {[%clk 0:00:34.8]} 28.
Kg3 {[%clk 0:01:26.2]} 28... d3 {[%clk 0:00:28.1]} 29. Rfd1 {[%clk 0:01:06.5]}
29... e2 {[%clk 0:00:25.2]} 30. Rd2 {[%clk 0:01:06]} 30... Qd4 {[%clk
0:00:25.3]} 31. Nh7+ {[%clk 0:00:34.6]} 31... Ke7 {[%clk 0:00:09.1]} 32. Kg4
{[%clk 0:00:04.7]} 32... Rh8 {[%clk 0:00:08.2]} 0-1

[Event "Early-Titled-Tuesday-Blitz-March-26-2024"]
[Site "Chess.com"]
[Date "2024.03.26"]
[Round "4"]
[White "YoreDea"]
[Black "RamonManon0g"]
[Result "1/2-1/2"]
[WhiteElo "2518"]
[BlackElo "2386"]
[TimeControl "180+1"]
[EndTime "8:38:14 PDT"]
[Termination "Game drawn by repetition"]

1. e4 {[%clk 0:03:00.1]} 1... c5 {[%clk 0:02:57.2]} 2. d3 {[%clk 0:02:58.1]}
2... d6 {[%clk 0:02:56.9]} 3. g3 {[%clk 0:02:57.9]} 3... Nc6 {[%clk 0:02:57.8]}
4. Bg2 {[%clk 0:02:57.4]} 4... Nf6 {[%clk 0:02:58.7]} 5. Ne2 {[%clk 0:02:56.9]}
5... e5 {[%clk 0:02:59.6]} 6. c3 {[%clk 0:02:56.3]} 6... Be7 {[%clk 0:03:00.5]}
7. O-O {[%clk 0:02:54.4]} 7... O-O {[%clk 0:03:00.4]} 8. h3 {[%clk 0:02:52.1]}
8... d5 {[%clk 0:03:00.7]} 9. exd5 {[%clk 0:02:44.1]} 9... Nxd5 {[%clk
0:03:01.6]} 10. Nd2 {[%clk 0:02:44.7]} 10... Bf5 {[%clk 0:02:50.8]} 11. Nc4
{[%clk 0:02:43.9]} 11... Nb6 {[%clk 0:02:42]} 12. Bxc6 {[%clk 0:02:31.7]} 12...
bxc6 {[%clk 0:02:41.8]} 13. Nxe5 {[%clk 0:02:31.8]} 13... Bxh3 {[%clk
0:02:38.3]} 14. Nxc6 {[%clk 0:02:27.5]} 14... Qc7 {[%clk 0:02:38.2]} 15. Nxe7+
{[%clk 0:02:27.3]} 15... Qxe7 {[%clk 0:02:39.1]} 16. Re1 {[%clk 0:02:27.5]}
16... Rfe8 {[%clk 0:02:36.6]} 17. Be3 {[%clk 0:02:24.7]} 17... g5 {[%clk
0:02:33.8]} 18. Kh2 {[%clk 0:02:09.9]} 18... Bg4 {[%clk 0:02:30.2]} 19. Qd2
{[%clk 0:02:02.6]} 19... f6 {[%clk 0:02:22.6]} 20. Ng1 {[%clk 0:01:53.1]} 20...
Qd6 {[%clk 0:02:11.3]} 21. f3 {[%clk 0:01:39.5]} 21... Bf5 {[%clk 0:02:06.6]}
22. Bf2 {[%clk 0:01:32.1]} 22... Qxd3 {[%clk 0:02:02.1]} 23. Qxd3 {[%clk
0:01:29.3]} 23... Bxd3 {[%clk 0:02:03]} 24. Bxc5 {[%clk 0:01:29.6]} 24... Na4
{[%clk 0:01:42.9]} 25. Bd4 {[%clk 0:01:07.5]} 25... Nxb2 {[%clk 0:01:42.1]} 26.
Bxf6 {[%clk 0:01:05.8]} 26... h6 {[%clk 0:01:42.3]} 27. Bd4 {[%clk 0:00:55.5]}
27... Bc4 {[%clk 0:01:37.2]} 28. Rxe8+ {[%clk 0:00:40.9]} 28... Rxe8 {[%clk
0:01:36.8]} 29. Bxa7 {[%clk 0:00:41.7]} 29... Ra8 {[%clk 0:01:17.3]} 30. Bd4
{[%clk 0:00:41.4]} 30... Rxa2 {[%clk 0:01:17.3]} 31. Rxa2 {[%clk 0:00:41.1]}
31... Bxa2 {[%clk 0:01:18.2]} 32. Kg2 {[%clk 0:00:38.1]} 32... Kf7 {[%clk
0:01:15.9]} 33. Nh3 {[%clk 0:00:31.2]} 33... Bd5 {[%clk 0:01:14.7]} 34. Nf2
{[%clk 0:00:29.9]} 34... Nc4 {[%clk 0:01:06.6]} 35. Ng4 {[%clk 0:00:19.5]} 35...
h5 {[%clk 0:01:06.5]} 36. Nf6 {[%clk 0:00:12.6]} 36... Bc6 {[%clk 0:01:01.7]}
37. Nxh5 {[%clk 0:00:12]} 37... g4 {[%clk 0:01:02]} 38. Kf2 {[%clk 0:00:08.4]}
38... gxf3 {[%clk 0:00:58.8]} 39. Nf6 {[%clk 0:00:04.4]} 39... Nb2 {[%clk
0:00:55.1]} 40. Ng4 {[%clk 0:00:04.2]} 40... Nd3+ {[%clk 0:00:54.7]} 41. Kf1
{[%clk 0:00:03.8]} 41... Bb5 {[%clk 0:00:51.4]} 42. Kg1 {[%clk 0:00:02.1]} 42...
Ke6 {[%clk 0:00:51.6]} 43. Nf2 {[%clk 0:00:02.3]} 43... Nc1 {[%clk 0:00:49.8]}
44. g4 {[%clk 0:00:02.7]} 44... Ne2+ {[%clk 0:00:48.3]} 45. Kh2 {[%clk
0:00:03.3]} 45... Kd5 {[%clk 0:00:47.1]} 46. g5 {[%clk 0:00:03.6]} 46... Nxd4
{[%clk 0:00:47.1]} 47. cxd4 {[%clk 0:00:03.3]} 47... Kxd4 {[%clk 0:00:48]} 48.
g6 {[%clk 0:00:03.7]} 48... Ke3 {[%clk 0:00:47.3]} 49. Kg3 {[%clk 0:00:04.6]}
49... Bc4 {[%clk 0:00:47.2]} 50. g7 {[%clk 0:00:04.7]} 50... Bg8 {[%clk
0:00:46.3]} 51. Nh3 {[%clk 0:00:03.9]} 51... Ke2 {[%clk 0:00:45.8]} 52. Nf2
{[%clk 0:00:03.7]} 52... Ke3 {[%clk 0:00:45.3]} 53. Ng4+ {[%clk 0:00:04]} 53...
Ke2 {[%clk 0:00:44.5]} 54. Nf2 {[%clk 0:00:02.8]} 54... Bf7 {[%clk 0:00:44]} 55.
Ne4 {[%clk 0:00:02.9]} 55... Bg8 {[%clk 0:00:40.2]} 56. Nf2 {[%clk 0:00:03.5]}
1/2-1/2

[Event "Early-Titled-Tuesday-Blitz-March-26-2024"]
[Site "Chess.com"]
[Date "2024.03.26"]
[Round "4"]
[White "GlavkonVVS"]
[Black "alexrustemov"]
[Result "0-1"]
[WhiteElo "2642"]
[BlackElo "2940"]
[TimeControl "180+1"]
[EndTime "8:38:15 PDT"]
[Termination "alexrustemov won by checkmate"]

1. c4 {[%clk 0:03:00.9]} 1... c5 {[%clk 0:02:59.2]} 2. Nc3 {[%clk 0:03:01.4]}
2... g6 {[%clk 0:02:59.2]} 3. g3 {[%clk 0:03:02]} 3... Bg7 {[%clk 0:02:59.4]} 4.
Bg2 {[%clk 0:03:02.6]} 4... Nc6 {[%clk 0:02:59.5]} 5. Nf3 {[%clk 0:03:03.2]}
5... b6 {[%clk 0:02:59.2]} 6. O-O {[%clk 0:03:02.7]} 6... Bb7 {[%clk 0:02:59.3]}
7. e3 {[%clk 0:02:59.3]} 7... Bxc3 {[%clk 0:02:58.7]} 8. bxc3 {[%clk 0:02:47.6]}
8... d6 {[%clk 0:02:58.8]} 9. d3 {[%clk 0:02:46.8]} 9... Qc7 {[%clk 0:02:58.8]}
10. e4 {[%clk 0:02:46.4]} 10... Nf6 {[%clk 0:02:58]} 11. a4 {[%clk 0:02:34.8]}
11... h6 {[%clk 0:02:55.6]} 12. h3 {[%clk 0:02:33]} 12... Nd7 {[%clk 0:02:54.9]}
13. Be3 {[%clk 0:02:30.6]} 13... g5 {[%clk 0:02:47.6]} 14. Nd2 {[%clk
0:02:27.9]} 14... O-O-O {[%clk 0:02:40.2]} 15. Nb3 {[%clk 0:02:27.1]} 15... a5
{[%clk 0:02:39.3]} 16. d4 {[%clk 0:02:18.5]} 16... Ba6 {[%clk 0:02:38.7]} 17.
Qe2 {[%clk 0:02:17]} 17... e5 {[%clk 0:02:36]} 18. Rfc1 {[%clk 0:02:16.2]} 18...
Rhe8 {[%clk 0:02:32.6]} 19. Qh5 {[%clk 0:02:13.2]} 19... Bxc4 {[%clk 0:02:19.6]}
20. Rab1 {[%clk 0:02:12.7]} 20... f6 {[%clk 0:02:06.8]} 21. Nd2 {[%clk 0:02:00]}
21... Ba6 {[%clk 0:02:03.5]} 22. Qxh6 {[%clk 0:01:58.2]} 22... Rh8 {[%clk
0:02:01.2]} 23. Qg7 {[%clk 0:01:56.7]} 23... Rdf8 {[%clk 0:01:51.4]} 24. d5
{[%clk 0:01:40.2]} 24... Nd8 {[%clk 0:01:47.1]} 25. Bf1 {[%clk 0:01:16.6]} 25...
Bxf1 {[%clk 0:01:42.5]} 26. Kxf1 {[%clk 0:01:13.5]} 26... Rxh3 {[%clk
0:01:40.5]} 27. Nc4 {[%clk 0:01:12.9]} 27... Rfh8 {[%clk 0:01:32]} 28. Ke2
{[%clk 0:01:11.4]} 28... Nb7 {[%clk 0:01:27]} 29. Rb5 {[%clk 0:01:07.4]} 29...
Rh1 {[%clk 0:01:07.4]} 30. Rcb1 {[%clk 0:01:03.3]} 30... Qd8 {[%clk 0:00:59.7]}
31. Nxb6+ {[%clk 0:00:56.8]} 31... Nxb6 {[%clk 0:00:49.9]} 32. Rxb6 {[%clk
0:00:57]} 32... R8h7 {[%clk 0:00:50.2]} 33. Rxb7 {[%clk 0:00:43]} 33... Rxb1
{[%clk 0:00:37.4]} 34. Rb8+ {[%clk 0:00:43]} 34... Kxb8 {[%clk 0:00:36.8]} 35.
Qxh7 {[%clk 0:00:41.8]} 35... Rb7 {[%clk 0:00:34.2]} 36. Qf5 {[%clk 0:00:40.5]}
36... Ka7 {[%clk 0:00:30]} 37. f4 {[%clk 0:00:39.1]} 37... gxf4 {[%clk
0:00:29.6]} 38. gxf4 {[%clk 0:00:39.4]} 38... Qe7 {[%clk 0:00:26.7]} 39. Kd3
{[%clk 0:00:28.2]} 39... Rc7 {[%clk 0:00:23.2]} 40. c4 {[%clk 0:00:26.4]} 40...
Qg7 {[%clk 0:00:21]} 41. Qe6 {[%clk 0:00:23.9]} 41... Qe7 {[%clk 0:00:20.1]} 42.
Qg8 {[%clk 0:00:21.7]} 42... Qd7 {[%clk 0:00:18.5]} 43. Qf8 {[%clk 0:00:19.5]}
43... Rb7 {[%clk 0:00:16.7]} 44. Qxf6 {[%clk 0:00:18.4]} 44... Qxa4 {[%clk
0:00:16.8]} 45. Qxd6 {[%clk 0:00:16.5]} 45... Qd1+ {[%clk 0:00:16.7]} 46. Bd2
{[%clk 0:00:16.4]} 46... Rb3# {[%clk 0:00:16.7]} 0-1

[Event "Early-Titled-Tuesday-Blitz-March-26-2024"]
[Site "Chess.com"]
[Date "2024.03.26"]
[Round "4"]
[White "Charodej1"]
[Black "Chxss_Khxsbu"]
[Result "0-1"]
[WhiteElo "2429"]
[BlackElo "1780"]
[TimeControl "180+1"]
[EndTime "8:38:15 PDT"]
[Termination "Chxss_Khxsbu won by checkmate"]

1. e4 {[%clk 0:03:00.9]} 1... e5 {[%clk 0:02:58.6]} 2. Nf3 {[%clk 0:03:00.2]}
2... Nf6 {[%clk 0:02:58.6]} 3. Nc3 {[%clk 0:02:59.1]} 3... Bb4 {[%clk
0:02:57.2]} 4. Bc4 {[%clk 0:02:52.8]} 4... O-O {[%clk 0:02:56.1]} 5. O-O {[%clk
0:02:44.6]} 5... d6 {[%clk 0:02:54.6]} 6. d3 {[%clk 0:02:37.6]} 6... Bg4 {[%clk
0:02:52.6]} 7. h3 {[%clk 0:02:37.5]} 7... Bh5 {[%clk 0:02:50.9]} 8. a3 {[%clk
0:02:32.4]} 8... Bxc3 {[%clk 0:02:50.3]} 9. bxc3 {[%clk 0:02:33.3]} 9... Nbd7
{[%clk 0:02:50]} 10. Be3 {[%clk 0:02:25.3]} 10... h6 {[%clk 0:02:16.1]} 11. Rb1
{[%clk 0:02:14.4]} 11... b6 {[%clk 0:02:13.3]} 12. Qe2 {[%clk 0:02:05.9]} 12...
c6 {[%clk 0:02:12.5]} 13. Bd2 {[%clk 0:01:57.3]} 13... d5 {[%clk 0:01:41.5]} 14.
Ba2 {[%clk 0:01:46.6]} 14... dxe4 {[%clk 0:01:41]} 15. dxe4 {[%clk 0:01:46.6]}
15... Nc5 {[%clk 0:01:40.6]} 16. g4 {[%clk 0:01:30.8]} 16... Bg6 {[%clk
0:01:38.8]} 17. Nxe5 {[%clk 0:01:27.4]} 17... Bxe4 {[%clk 0:01:37.9]} 18. Be3
{[%clk 0:01:15.7]} 18... Na4 {[%clk 0:01:31.6]} 19. Qc4 {[%clk 0:01:02.7]} 19...
b5 {[%clk 0:01:29.2]} 20. Qb3 {[%clk 0:00:46.3]} 20... Qe7 {[%clk 0:01:27.9]}
21. Nd3 {[%clk 0:00:38.8]} 21... Bd5 {[%clk 0:00:52.2]} 22. Qb4 {[%clk
0:00:30.9]} 22... c5 {[%clk 0:00:48]} 23. Bxc5 {[%clk 0:00:24.6]} 23... Nxc5
{[%clk 0:00:46.6]} 24. Bxd5 {[%clk 0:00:21.9]} 24... Nxd5 {[%clk 0:00:43.4]} 25.
Qxc5 {[%clk 0:00:20.5]} 25... Qxc5 {[%clk 0:00:41.3]} 26. Nxc5 {[%clk
0:00:21.4]} 26... Nxc3 {[%clk 0:00:41.2]} 27. Rb3 {[%clk 0:00:21.2]} 27... Ne2+
{[%clk 0:00:41]} 28. Kg2 {[%clk 0:00:21.2]} 28... a6 {[%clk 0:00:34.9]} 29. Ne4
{[%clk 0:00:18.5]} 29... Nd4 {[%clk 0:00:33.7]} 30. Rb2 {[%clk 0:00:17.6]} 30...
Rac8 {[%clk 0:00:32.7]} 31. c3 {[%clk 0:00:17.5]} 31... Ne6 {[%clk 0:00:30.1]}
32. f4 {[%clk 0:00:16.4]} 32... Nc5 {[%clk 0:00:27.3]} 33. Nd6 {[%clk
0:00:15.4]} 33... Rc6 {[%clk 0:00:26.3]} 34. Nf5 {[%clk 0:00:15.3]} 34... Nd3
{[%clk 0:00:25.5]} 35. Ne7+ {[%clk 0:00:15.3]} 35... Kh8 {[%clk 0:00:24.7]} 36.
Rd2 {[%clk 0:00:14.3]} 36... Rxc3 {[%clk 0:00:22.6]} 37. Rf3 {[%clk 0:00:14.1]}
37... Rd8 {[%clk 0:00:18.6]} 38. Kf1 {[%clk 0:00:11.5]} 38... Rxa3 {[%clk
0:00:18.3]} 39. Nc6 {[%clk 0:00:10.6]} 39... Ra1+ {[%clk 0:00:16.4]} 40. Ke2
{[%clk 0:00:08.9]} 40... Re1# {[%clk 0:00:15.6]} 0-1